bitfinex/quotes_SOLUSD_20240621
["timestamp","ask_amount","ask_price","bid_price","bid_amount"]
[1718976086078,6.1403,130.29,130.23,28.6232]
[1718976086297,30.6921,130.33,130.23,22.4806]
[1718976086484,6.1399,130.3,130.25,6.1419]
[1718976086668,15.3469,130.32,130.23,22.4806]
[1718976086872,6.1399,130.3,130.25,6.142]
[1718976087073,6.1402,130.29,130.23,22.4806]
[1718976087290,6.1398,130.3,130.24,6.1423]
[1718976087473,6.1406,130.29,130.23,28.6232]
[1718976087668,15.3469,130.32,130.23,22.4806]
[1718976087893,6.1404,130.29,130.23,22.4806]
[1718976088291,6.1407,130.28,130.23,28.6231]
[1718976088487,85.16145185,130.36,130.23,22.4806]
[1718976088692,15.3492,130.3,130.23,22.4806]
[1718976089008,6.1418,130.26,130.23,22.4806]
[1718976089300,6.1421,130.25,130.2,29.0904]
[1718976089476,6.1417,130.26,130.21,6.1437]
[1718976090589,6.1412,130.27,130.21,6.1436]
[1718976090998,6.1412,130.27,130.22,6.1434]
[1718976091294,6.1418,130.26,130.2,22.9463]
[1718976091496,6.1418,130.26,130.21,6.1436]
[1718976092706,6.1418,130.26,130.2,29.0904]
[1718976092911,6.1418,130.26,130.21,6.1436]
[1718976093283,6.1418,130.26,130.2,22.9463]
[1718976093490,6.142,130.25,130.2,29.0904]
[1718976094406,15.3525,130.28,130.2,22.9463]
[1718976094599,6.1423,130.25,130.2,29.0906]
[1718976094792,6.1412,130.27,130.22,6.1432]
[1718976094992,15.3492,130.3,130.2,22.9463]
[1718976095198,6.1406,130.28,130.23,6.1426]
[1718976095587,6.1406,130.28,130.23,6.1428]
[1718976095783,6.1403,130.29,130.23,6.1428]
[1718976096212,6.1406,130.28,130.23,6.1428]
[1718976096429,6.1411,130.27,130.22,6.1433]
[1718976096616,15.3503,130.29,130.21,6.1437]
[1718976096916,6.1419,130.26,130.21,6.1437]
[1718976097293,6.142,130.25,130.2,29.0905]
[1718976097991,6.1413,130.27,130.21,8.23532241]
[1718976098187,6.1406,130.28,130.21,2.09152241]
[1718976098397,6.1406,130.28,130.23,6.1428]
[1718976099410,6.1266565,130.32,130.2,22.9463]
[1718976099714,6.1411,130.27,130.22,6.1434]
[1718976100308,6.1407,130.28,130.23,6.1429]
[1718976100892,21.60535637,130.33,130.2,22.9463]
[1718976101111,6.1395,130.31,130.26,6.1415]
[1718976101303,6.1395,130.31,130.27,22.3076]
[1718976102223,6.1411,130.27,130.23,21.9761]
[1718976102415,6.1417,130.26,130.23,21.9761]
[1718976102711,29.65,130.31,130.23,21.9761]
[1718976102914,6.1418,130.26,130.23,21.9761]
[1718976103414,6.1415,130.26,130.23,21.9761]
[1718976103803,6.1421,130.25,130.23,21.9761]
[1718976104110,6.1417,130.26,130.23,21.9761]
[1718976104312,6.1412,130.27,130.23,21.9761]
[1718976104518,20.0,130.3,130.24,6.1422]
[1718976104822,6.1407,130.28,130.23,28.1188]
[1718976105111,6.1412,130.27,130.23,21.9761]
[1718976105299,15.3512,130.29,130.23,21.9761]
[1718976105498,44.998,130.32,130.24,6.1424]
[1718976105698,26.1395,130.31,130.23,21.9761]
[1718976105904,6.1401,130.3,130.24,6.1421]
[1718976106103,20.0,130.33,130.25,6.1416]
[1718976106303,6.1397,130.3,130.25,6.1416]
[1718976106617,6.1384,130.33,130.27,6.1406]
[1718976106805,15.3436,130.35,130.26,6.1414]
[1718976107007,8.16076693,130.38,130.23,21.9761]
[1718976107008,15.3452,130.34,130.23,21.9761]
[1718976107317,6.1389,130.32,130.27,6.1407]
[1718976107524,6.1384,130.33,130.28,6.1406]
[1718976107714,15.3457,130.33,130.26,6.1412]
[1718976107895,6.1394,130.31,130.26,6.1412]
[1718976108095,6.1397,130.3,130.25,6.1418]
[1718976108312,6.1394,130.31,130.26,6.1415]
[1718976108715,6.1389,130.32,130.26,6.1415]
[1718976108929,6.1389,130.32,130.27,6.1406]
[1718976109417,6.1392,130.31,130.26,6.1413]
[1718976109724,6.1399,130.3,130.25,6.1419]
[1718976110297,6.1397,130.3,130.25,6.1419]
[1718976110517,6.1403,130.29,130.23,28.1186]
[1718976110710,6.1415,130.27,130.23,21.9761]
[1718976110900,6.1412,130.27,130.23,21.9761]
[1718976111316,6.1415,130.26,130.23,21.9761]
[1718976111713,6.1412,130.27,130.23,21.9761]
[1718976111925,6.1406,130.28,130.23,21.9761]
[1718976112230,6.1406,130.28,130.23,28.1189]
[1718976112632,6.1401,130.29,130.24,6.1423]
[1718976113002,15.346,130.33,130.23,21.9761]
[1718976113337,285.7777,130.39,130.27,6.1409]
[1718976113504,20.0,130.38,130.26,6.1413]
[1718976113697,20.0,130.38,130.27,6.1409]
[1718976114225,6.1381,130.34,130.29,6.1397]
[1718976114718,15.344,130.35,130.24,51.8782]
[1718976114936,15.3462,130.33,130.24,22.2282]
[1718976115131,6.1388,130.32,130.27,6.141]
[1718976115515,6.1383,130.33,130.28,6.1405]
[1718976115939,6.1379,130.34,130.29,6.1401]
[1718976116513,6.1383,130.33,130.28,6.1404]
[1718976117006,6.1379,130.34,130.29,6.1398]
[1718976117231,6.1385,130.33,130.28,6.1405]
[1718976117532,6.1379,130.34,130.29,6.1401]
[1718976118036,6.1379,130.34,130.29,29.0898]
[1718976118515,6.1383,130.33,130.29,22.9497]
[1718976119035,6.1392,130.31,130.29,22.9497]
[1718976119749,15.342,130.37,130.29,22.9497]
[1718976119910,20.0,130.36,130.29,22.9497]
[1718976120108,6.1382,130.34,130.29,22.9497]
[1718976120332,6.1395,130.31,130.29,22.9497]
[1718976120635,6.1393,130.31,130.29,22.9497]
[1718976120819,6.1393,130.31,130.23,15.3573]
[1718976120820,15.3467,130.33,130.25,22.7368]
[1718976121025,6.1398,130.3,130.25,28.8785]
[1718976121413,6.1393,130.31,130.25,28.8785]
[1718976121610,6.1389,130.32,130.27,6.141]
[1718976121829,6.1381,130.34,130.29,6.1401]
[1718976122128,261.30891057,130.39,130.32,6.1384]
[1718976122419,6.1363,130.37,130.33,22.6255]
[1718976123222,15.3363,130.41,130.33,28.7636]
[1718976123430,6.1356,130.39,130.34,6.1377]
[1718976123761,263.817,130.44,130.33,22.6255]
[1718976123921,6.1348,130.41,130.35,6.1371]
[1718976124117,6.135,130.4,130.33,22.6255]
[1718976124321,6.1357,130.39,130.33,28.7635]
[1718976124720,6.135,130.4,130.33,22.6255]
[1718976125055,6.1342,130.42,130.36,6.1365]
[1718976125238,6.1352,130.4,130.35,6.137]
[1718976125414,6.1355,130.39,130.34,6.1375]
[1718976125916,6.1341,130.42,130.37,6.1361]
[1718976126124,6.1345,130.41,130.36,6.1366]
[1718976126345,6.1337,130.43,130.38,6.1358]
[1718976126520,51.1482544,130.45,130.33,22.6255]
[1718976126717,6.1347,130.41,130.36,6.1367]
[1718976126936,6.1342,130.42,130.37,6.1363]
[1718976127134,6.1342,130.42,130.36,6.1366]
[1718976127325,15.3348,130.43,130.33,22.6255]
[1718976127524,20.0,130.42,130.33,22.6255]
[1718976127947,6.1361,130.38,130.33,28.7637]
[1718976128123,20.0,130.42,130.33,22.6255]
[1718976128323,6.1371,130.36,130.33,22.6255]
[1718976128640,6.1379,130.34,130.29,28.1363]
[1718976128938,15.341,130.37,130.29,21.9964]
[1718976129143,6.1387,130.32,130.29,21.9964]
[1718976129325,6.1387,130.32,130.26,16.3645]
[1718976129524,6.1394,130.31,130.26,22.4212]
[1718976130023,15.3471,130.32,130.26,22.4212]
[1718976130237,15.3471,130.32,130.2,15.3606]
[1718976130238,6.1403,130.29,130.23,12.4603]
[1718976130439,6.1403,130.29,130.24,6.1423]
[1718976130849,6.1403,130.29,130.23,6.3177]
[1718976130850,6.1397,130.3,130.25,6.142]
[1718976131151,15.3446,130.34,130.23,6.3177]
[1718976131449,6.1397,130.3,130.24,6.142]
[1718976131829,6.1397,130.3,130.23,6.3177]
[1718976131830,6.1394,130.31,130.25,6.1419]
[1718976132028,20.0,130.33,130.23,6.3177]
[1718976132257,20.0,130.34,130.23,6.3177]
[1718976132437,6.1397,130.3,130.24,6.1423]
[1718976133253,20.0,130.34,130.23,6.3177]
[1718976133433,6.1384,130.33,130.27,6.1407]
[1718976133627,6.1376,130.35,130.29,6.1399]
[1718976133833,6.137,130.36,130.25,15.2775]
[1718976134154,15.3418,130.37,130.28,6.1403]
[1718976134339,6.1374,130.35,130.3,6.1396]
[1718976134845,6.137,130.36,130.3,6.1394]
[1718976135144,6.1377,130.35,130.29,6.14]
[1718976135348,6.1381,130.34,130.27,21.9401]
[1718976135534,6.1381,130.34,130.29,6.1401]
[1718976135732,6.1375,130.35,130.27,21.9401]
[1718976136048,6.1375,130.35,130.3,6.1394]
[1718976136346,6.1375,130.35,130.27,21.9401]
[1718976136347,6.1376,130.35,130.29,6.1399]
[1718976136550,15.3407,130.38,130.29,6.1399]
[1718976136758,6.138,130.34,130.29,6.1399]
[1718976137126,6.138,130.34,130.28,6.1403]
[1718976137738,6.1382,130.33,130.28,6.1403]
[1718976138252,15.3429,130.36,130.27,12.7292]
[1718976138445,6.1386,130.33,130.27,12.7292]
[1718976139471,6.1387,130.32,130.27,12.7292]
[1718976139640,6.1384,130.33,130.27,12.7292]
[1718976139939,6.1384,130.33,130.28,6.1405]
[1718976140337,15.3399,130.38,130.27,6.5883]
[1718976140543,6.1369,130.36,130.31,6.1389]
[1718976140870,6.1367,130.37,130.32,6.1386]
[1718976141043,6.1361,130.38,130.33,6.1381]
[1718976141353,6.1362,130.38,130.32,16.5514]
[1718976141558,6.1352,130.4,130.34,6.1375]
[1718976141856,6.1352,130.4,130.32,16.5514]
[1718976142040,6.1352,130.4,130.33,6.2263]
[1718976142353,15.3371,130.41,130.33,6.2263]
[1718976142531,6.1364,130.37,130.33,6.2263]
[1718976142731,6.1373,130.35,130.33,6.2263]
[1718976143047,8.16076693,130.41,130.29,6.4776]
[1718976143241,6.1385,130.33,130.29,6.4776]
[1718976143548,6.1387,130.32,130.29,6.4776]
[1718976143741,6.1385,130.33,130.29,6.4776]
[1718976143935,6.1379,130.34,130.29,12.6175]
[1718976144342,6.1394,130.31,130.25,6.1416]
[1718976144559,6.139,130.32,130.26,6.1413]
[1718976144855,15.3445,130.34,130.26,6.1413]
[1718976145040,26.1384,130.33,130.27,6.1409]
[1718976145235,26.1384,130.33,130.28,6.1404]
[1718976145651,6.138,130.34,130.28,6.1404]
[1718976145855,15.34,130.38,130.24,53.4241]
[1718976146040,6.1371,130.36,130.31,6.1389]
[1718976146348,6.1371,130.36,130.3,6.1394]
[1718976146547,6.1384,130.33,130.29,6.2999]
[1718976146937,6.1375,130.35,130.29,6.2999]
[1718976147161,6.1375,130.35,130.3,6.1392]
[1718976147667,6.1381,130.34,130.29,12.44]
[1718976147962,6.1381,130.34,130.29,6.2999]
[1718976148162,6.1381,130.34,130.29,12.44]
[1718976148662,6.1382,130.33,130.29,6.2999]
[1718976149051,6.1379,130.34,130.29,6.2999]
[1718976149243,6.1375,130.35,130.3,6.1393]
[1718976149559,6.1379,130.34,130.29,12.4398]
[1718976149762,6.1374,130.35,130.3,6.1396]
[1718976149943,6.1378,130.34,130.29,12.4398]
[1718976150254,65.3857,130.4,130.29,6.2999]
[1718976150461,6.1388,130.32,130.29,6.2999]
[1718976150760,6.1385,130.33,130.29,6.2999]
[1718976151740,15.3434,130.35,130.29,6.2999]
[1718976151956,6.139,130.32,130.29,6.2999]
[1718976152634,0.17,130.36,130.26,6.5075]
[1718976152962,6.1393,130.31,130.26,6.5075]
[1718976153135,65.34,130.36,130.26,6.5075]
[1718976153339,65.34,130.36,130.24,16.4399]
[1718976153340,6.141,130.28,130.24,16.4399]
[1718976153556,6.1402,130.29,130.24,16.4399]
[1718976154063,6.1396,130.31,130.26,6.1411]
[1718976154264,15.3466,130.33,130.24,22.5821]
[1718976154564,6.14,130.3,130.25,6.142]
[1718976154940,6.1394,130.31,130.26,6.1413]
[1718976155258,6.1396,130.31,130.26,6.1412]
[1718976155651,20.0,130.32,130.26,6.1412]
[1718976155840,6.1394,130.31,130.26,6.1412]
[1718976156240,20.0,130.32,130.25,6.1418]
[1718976156540,6.1394,130.31,130.25,6.1418]
[1718976156760,6.1397,130.3,130.25,6.1419]
[1718976157136,6.1393,130.31,130.26,6.1415]
[1718976157541,6.1398,130.3,130.24,16.4399]
[1718976157742,6.1398,130.3,130.25,6.1419]
[1718976157949,35.3476,130.32,130.24,22.5823]
[1718976158145,6.1403,130.29,130.24,22.5821]
[1718976158668,6.1406,130.28,130.24,16.4399]
[1718976158849,15.3488,130.31,130.24,16.4399]
[1718976159054,6.1413,130.27,130.24,16.4399]
[1718976159762,6.1406,130.28,130.24,16.4399]
[1718976160154,6.1403,130.29,130.24,16.4399]
[1718976160357,6.1398,130.3,130.25,6.142]
[1718976160865,6.1401,130.29,130.24,22.5822]
[1718976161174,6.1401,130.29,130.24,16.4399]
[1718976161473,6.1401,130.29,130.24,22.5822]
[1718976161969,6.1406,130.28,130.24,16.4399]
[1718976162370,6.1403,130.29,130.24,22.5823]
[1718976162867,35.3478,130.32,130.24,16.4399]
[1718976163173,6.1407,130.28,130.24,16.4399]
[1718976163875,6.1402,130.29,130.24,22.5823]
[1718976164169,15.3488,130.31,130.24,16.4399]
[1718976164170,6.1407,130.28,130.24,16.4399]
[1718976164471,6.1403,130.29,130.24,22.5823]
[1718976164967,20.0,130.32,130.25,6.142]
[1718976164968,6.1398,130.3,130.25,6.142]
[1718976165555,6.1401,130.29,130.24,22.5821]
[1718976166060,20.0,130.32,130.24,16.4399]
[1718976166259,6.1395,130.31,130.26,6.1413]
[1718976166563,6.1397,130.3,130.25,6.1418]
[1718976166761,6.1397,130.3,130.24,16.4399]
[1718976166762,20.0,130.32,130.24,16.4399]
[1718976166962,6.1399,130.3,130.25,6.1417]
[1718976167456,6.1406,130.28,130.24,16.4399]
[1718976167661,6.1402,130.29,130.24,22.5822]
[1718976167868,6.1402,130.29,130.24,16.4399]
[1718976168260,6.1406,130.28,130.24,16.4399]
[1718976168584,6.1411,130.27,130.24,16.4399]
[1718976170581,6.142,130.25,130.2,21.585]
[1718976170760,6.142,130.25,130.2,15.4407]
[1718976170962,15.3518,130.28,130.2,15.4407]
[1718976171159,65.34,130.27,130.2,15.4407]
[1718976171392,65.0,130.27,130.2,15.4407]
[1718976171688,26.1414,130.27,130.2,21.5848]
[1718976171905,6.1406,130.28,130.21,6.1438]
[1718976172200,6.1401,130.3,130.23,6.1429]
[1718976172377,20.0,130.29,130.2,21.5847]
[1718976172688,6.1411,130.27,130.2,21.585]
[1718976172992,20.0,130.29,130.2,15.4407]
[1718976173297,6.1421,130.25,130.2,15.4407]
[1718976174064,6.1425,130.24,130.2,15.4407]
[1718976174260,20.0,130.29,130.15,7.4507609]
[1718976174473,20.66155141,130.29,130.15,7.4507609]
[1718976174685,6.1434,130.23,130.16,6.1459]
[1718976174895,6.1426,130.24,130.17,6.1457]
[1718976175187,6.143,130.23,130.17,6.1457]
[1718976175604,6.142,130.25,130.2,15.2508]
[1718976175811,15.3529,130.27,130.2,15.2508]
[1718976176094,20.67633286,130.29,130.2,15.2508]
[1718976176095,20.0,130.26,130.21,6.3328]
[1718976176295,20.0,130.29,130.21,6.3328]
[1718976177082,60.6921,130.28,130.21,6.3328]
[1718976177386,6.1417,130.26,130.21,6.3328]
[1718976177767,6.1426,130.24,130.21,6.3328]
[1718976178102,6.1431,130.23,130.21,6.3328]
[1718976178290,46.17,130.3,130.2,15.2508]
[1718976178600,6.143,130.23,130.2,15.2508]
[1718976179300,6.1425,130.24,130.2,15.2508]
[1718976180091,15.354,130.26,130.2,15.2508]
[1718976180290,65.34,130.25,130.2,15.2508]
[1718976180874,6.1435,130.22,130.2,15.2508]
[1718976181375,6.1431,130.23,130.2,15.2508]
[1718976181575,65.34,130.25,130.2,15.2508]
[1718976181809,20.0,130.25,130.2,15.2508]
[1718976181979,20.0,130.28,130.2,15.2508]
[1718976182184,6.1425,130.24,130.2,15.2508]
[1718976182394,6.143,130.23,130.2,15.2508]
[1718976183134,6.1435,130.22,130.2,15.2508]
[1718976183438,6.1439,130.21,130.18,6.223]
[1718976183598,6.1436,130.22,130.18,6.223]
[1718976183803,6.1431,130.23,130.18,6.223]
[1718976184333,6.1434,130.22,130.18,6.223]
[1718976185027,6.1439,130.21,130.18,6.223]
[1718976185230,6.1436,130.22,130.18,6.223]
[1718976186202,6.143,130.23,130.18,6.223]
[1718976186404,255.1,130.27,130.19,6.1448]
[1718976186624,6.1424,130.25,130.18,6.223]
[1718976186831,6.1427,130.24,130.18,12.3682]
[1718976187007,255.1,130.27,130.18,6.223]
[1718976187328,6.1435,130.22,130.18,6.223]
[1718976187519,15.3553,130.25,130.18,6.223]
[1718976187712,6.1434,130.22,130.18,6.223]
[1718976188028,6.1447,130.2,130.18,6.223]
[1718976188403,0.34,130.21,130.15,0.8576609]
[1718976188609,6.1447,130.2,130.15,0.8576609]
[1718976188906,6.1448,130.19,130.15,0.8576609]
[1718976189109,6.1445,130.2,130.15,0.8576609]
[1718976189510,6.1445,130.2,130.15,7.0042609]
[1718976189910,6.1445,130.2,130.15,0.8576609]
[1718976190226,6.1449,130.19,130.15,0.8576609]
[1718976190616,15.5288,130.22,130.15,0.8576609]
[1718976190934,6.1451,130.19,130.15,0.8576609]
[1718976191428,65.0,130.21,130.15,0.8576609]
[1718976191429,6.1446,130.2,130.15,0.8576609]
[1718976191814,80.3608,130.21,130.15,0.8576609]
[1718976192127,0.34,130.2,130.15,0.8576609]
[1718976192626,6.1453,130.19,130.15,0.8576609]
[1718976193011,6.1453,130.18,130.15,0.8576609]
[1718976193429,6.1458,130.17,130.15,0.8576609]
[1718976193726,6.1455,130.18,130.15,0.8576609]
[1718976193915,6.1454,130.18,130.15,0.8576609]
[1718976194116,6.145,130.19,130.15,0.8576609]
[1718976194907,15.3576,130.23,130.16,6.146]
[1718976195108,20.0,130.22,130.17,6.1457]
[1718976195317,6.1439,130.21,130.15,0.8576609]
[1718976195527,0.67633286,130.29,130.16,6.146]
[1718976195715,6.1437,130.22,130.16,6.146]
[1718976195911,28.717,130.21,130.15,0.8576609]
[1718976196225,35.36,130.21,130.15,22.1023609]
[1718976196407,6.1451,130.19,130.15,22.1023609]
[1718976196913,20.0,130.21,130.15,28.2490609]
[1718976196914,6.1445,130.2,130.15,28.2490609]
[1718976197109,6.1445,130.2,130.15,22.1023609]
[1718976197322,6.1456,130.18,130.15,22.1023609]
[1718976197526,6.1455,130.18,130.15,22.1023609]
[1718976197726,6.1462,130.16,130.15,0.8576609]
[1718976198241,6.146,130.17,130.15,0.8576609]
[1718976198844,6.1462,130.16,130.15,0.8576609]
[1718976200555,51.4862,130.16,130.15,0.8576609]
[1718976200724,71.4862,130.16,130.15,0.8576609]
[1718976200914,71.1462,130.16,130.15,0.8576609]
[1718976201115,71.3162,130.16,130.15,0.8576609]
[1718976201428,26.1462,130.16,130.15,0.8576609]
[1718976202319,51.4862,130.16,130.15,0.8576609]
[1718976202739,71.4862,130.16,130.15,0.8576609]
[1718976202920,26.1462,130.16,130.15,0.8576609]
[1718976203321,6.1462,130.16,130.15,0.8576609]
[1718976203526,51.1462,130.16,130.15,0.8576609]
[1718976203915,51.4862,130.16,130.15,0.8576609]
[1718976204231,51.1462,130.16,130.15,0.8576609]
[1718976204540,6.1462,130.16,130.15,0.8576609]
[1718976204720,51.4862,130.16,130.15,0.8576609]
[1718976205135,71.4862,130.16,130.15,0.8576609]
[1718976206440,51.1462,130.16,130.15,0.8576609]
[1718976206750,51.3162,130.16,130.15,0.8576609]
[1718976207352,65.34,130.16,130.09,21.8389]
[1718976207559,6.1491,130.1,130.09,21.8389]
[1718976207859,6.1491,130.1,130.09,0.1]
[1718976207860,71.3191,130.1,130.09,0.1]
[1718976208049,71.3191,130.1,130.02,23.7995609]
[1718976208050,80.7127,130.1,130.02,23.7995609]
[1718976208352,6.1507,130.07,130.02,23.7995609]
[1718976208539,51.321,130.06,130.02,23.7995609]
[1718976208740,51.321,130.06,130.0,169.84991358]
[1718976208741,45.0,130.05,130.0,169.84991358]
[1718976209068,46.17,130.07,130.0,166.00281358]
[1718976209069,6.1505,130.07,130.0,166.00281358]
[1718976209354,65.17,130.06,130.0,166.00281358]
[1718976209558,30.747,130.1,130.0,166.00281358]
[1718976209761,45.0,130.09,130.0,166.00281358]
[1718976209940,15.3751,130.08,130.0,166.00281358]
[1718976210134,0.34,130.07,130.0,166.00281358]
[1718976210344,6.1523,130.04,130.0,166.00281358]
[1718976210555,45.34,130.07,130.0,166.00281358]
[1718976211646,6.1522,130.04,130.0,166.00281358]
[1718976212466,6.1516,130.05,130.0,166.00281358]
[1718976212754,6.1512,130.06,130.0,172.15651358]
[1718976212957,15.3726,130.11,130.03,6.1523]
[1718976213264,6.1503,130.08,130.02,6.1526]
[1718976213438,6.1497,130.09,130.03,6.1522]
[1718976213642,6.1498,130.09,130.01,6.1388]
[1718976213851,15.3737,130.1,130.01,6.1388]
[1718976214155,6.1493,130.1,130.01,6.1388]
[1718976214357,6.1483,130.12,130.03,15.3805]
[1718976214534,6.1477,130.13,130.08,6.1498]
[1718976214735,8.717,130.21,130.04,6.5892]
[1718976214944,66.17,130.2,130.09,6.1495]
[1718976215141,6.1474,130.14,130.09,6.1495]
[1718976215449,6.1473,130.14,130.09,6.1494]
[1718976215657,6.1468,130.15,130.1,6.149]
[1718976216171,15.3645,130.17,130.08,6.1499]
[1718976216172,6.1473,130.14,130.08,6.1499]
[1718976216341,15.3645,130.17,130.08,6.1499]
[1718976216850,15.3645,130.17,130.1,6.149]
[1718976217158,30.7235,130.2,130.1,6.149]
[1718976217159,6.1464,130.16,130.1,6.149]
[1718976217459,255.1,130.22,130.13,22.5228]
[1718976217637,20.0,130.21,130.14,6.147]
[1718976217844,6.1453,130.18,130.13,22.5228]
[1718976218044,6.1449,130.19,130.13,22.5228]
[1718976218357,6.1449,130.19,130.14,6.1469]
[1718976218557,15.3565,130.24,130.16,6.146]
[1718976218744,15.3565,130.24,130.13,22.5228]
[1718976218745,15.3565,130.24,130.15,6.1465]
[1718976218945,301.27,130.27,130.13,22.5228]
[1718976219146,255.1,130.27,130.13,22.5228]
[1718976219366,15.3574,130.24,130.15,6.1463]
[1718976219547,6.1446,130.2,130.15,6.1464]
[1718976219743,15.3574,130.24,130.14,15.3679]
[1718976219942,270.4538,130.27,130.18,6.1449]
[1718976220138,6.1435,130.22,130.16,6.146]
[1718976220449,6.1435,130.22,130.14,15.3679]
[1718976220945,6.1432,130.23,130.18,6.145]
[1718976221149,6.1426,130.24,130.18,6.145]
[1718976221352,6.143,130.23,130.18,6.145]
[1718976221557,6.143,130.23,130.17,6.1456]
[1718976221860,6.1431,130.23,130.17,6.1457]
[1718976222058,6.1431,130.23,130.17,6.1456]
[1718976222259,6.1437,130.22,130.17,6.1456]
[1718976222565,6.1435,130.22,130.17,6.1456]
[1718976222753,6.1431,130.23,130.18,6.1451]
[1718976223063,6.1427,130.24,130.19,6.1448]
[1718976223274,6.1427,130.24,130.13,22.6928]
[1718976223275,255.1,130.27,130.2,6.144]
[1718976223963,6.1423,130.25,130.2,6.144]
[1718976224167,6.1414,130.27,130.22,6.1433]
[1718976224346,6.1408,130.28,130.23,6.1429]
[1718976224543,6.1408,130.28,130.21,22.7762]
[1718976224544,15.3517,130.28,130.21,22.7762]
[1718976224748,6.1421,130.25,130.21,22.7762]
[1718976224954,0.67633286,130.29,130.21,22.7762]
[1718976225150,6.1418,130.26,130.21,28.9199]
[1718976225560,6.1422,130.25,130.21,22.7762]
[1718976225765,16.02753286,130.29,130.21,28.9197]
[1718976226075,6.1416,130.26,130.21,28.9197]
[1718976226966,6.1412,130.27,130.22,6.1432]
[1718976227346,6.1407,130.28,130.23,6.1429]
[1718976227656,6.1407,130.28,130.22,6.1432]
[1718976227860,6.1407,130.28,130.23,6.1429]
[1718976228067,6.1417,130.26,130.21,28.9199]
[1718976229364,15.3527,130.27,130.21,22.7762]
[1718976229556,45.34,130.26,130.17,15.6635]
[1718976229751,6.144,130.21,130.17,15.6635]
[1718976229976,51.1419,130.26,130.21,6.1438]
[1718976230168,15.5204,130.29,130.21,6.1438]
[1718976230169,6.1412,130.27,130.21,6.1438]
[1718976230676,6.1416,130.26,130.2,6.1442]
[1718976230856,6.1416,130.26,130.21,6.1439]
[1718976231170,6.1415,130.26,130.2,6.1441]
[1718976231587,77.0448,130.28,130.19,6.5637]
[1718976231772,77.0448,130.28,130.19,12.7083]
[1718976231773,6.1427,130.24,130.19,12.7083]
[1718976231976,6.143,130.23,130.19,6.5637]
[1718976232277,6.1428,130.24,130.19,12.7085]
[1718976232480,6.1433,130.23,130.19,6.5637]
[1718976232771,6.144,130.21,130.19,6.5637]
[1718976232964,0.17,130.25,130.19,6.5637]
[1718976232965,6.1443,130.2,130.19,6.5637]
[1718976233158,6.1441,130.21,130.19,6.5637]
[1718976233569,6.1435,130.22,130.19,6.5637]
[1718976234254,6.1431,130.23,130.19,6.5637]
[1718976234470,6.1435,130.22,130.19,6.5637]
[1718976234676,6.1442,130.21,130.19,6.5637]
[1718976236261,6.1435,130.22,130.19,6.5637]
[1718976236476,6.1425,130.24,130.19,12.7081]
[1718976236663,80.3528,130.27,130.19,6.5637]
[1718976236857,0.34,130.26,130.19,6.5637]
[1718976237062,35.3528,130.27,130.19,12.7082]
[1718976237278,309.987,130.33,130.19,6.5637]
[1718976237452,20.0,130.3,130.19,6.5637]
[1718976237652,6.1418,130.26,130.21,6.1438]
[1718976238576,20.0,130.3,130.19,6.5637]
[1718976238877,6.1423,130.25,130.2,6.1442]
[1718976239099,6.1412,130.27,130.19,6.5637]
[1718976239276,20.0,130.3,130.19,6.5637]
[1718976239277,20.0,130.3,130.23,16.2746]